[Event "*** Titled Tuesday 3|2 Blitz"]
[Site "Chess.com"]
[Date "2015.11.03"]
[Round "1"]
[White "spectralsoul"]
[Black "Saitama_Hero"]
[Result "1-0"]
[WhiteElo "2479"]
[BlackElo "2160"]
[TimeControl "180+2"]
[EndTime "11:03:10 PST"]
[Termination "spectralsoul won by resignation"]

1. c4 {[%clk 0:03:01.8]} 1... Nf6 {[%clk 0:02:56.5]} 2. Nc3 {[%clk 0:03:02.3]}
2... g6 {[%clk 0:02:54.4]} 3. g3 {[%clk 0:03:02.6]} 3... d5 {[%clk 0:02:56]} 4.
cxd5 {[%clk 0:03:01.6]} 4... Nxd5 {[%clk 0:02:56.1]} 5. Qb3 {[%clk 0:03:03.1]}
5... Nb6 {[%clk 0:02:55.2]} 6. Bg2 {[%clk 0:03:03.4]} 6... Bg7 {[%clk
0:02:56.8]} 7. Nf3 {[%clk 0:03:02.1]} 7... O-O {[%clk 0:02:58.3]} 8. O-O {[%clk
0:03:00.8]} 8... a5 {[%clk 0:02:58.3]} 9. d4 {[%clk 0:03:01.1]} 9... a4 {[%clk
0:02:58]} 10. Qc2 {[%clk 0:03:00.9]} 10... Nc6 {[%clk 0:02:59.3]} 11. Rd1 {[%clk
0:02:57.5]} 11... Bf5 {[%clk 0:02:56.8]} 12. e4 {[%clk 0:02:56.1]} 12... Bg4
{[%clk 0:02:58.3]} 13. d5 {[%clk 0:02:56.4]} 13... Bxf3 {[%clk 0:02:41.7]} 14.
Bxf3 {[%clk 0:02:54.4]} 14... Nd4 {[%clk 0:02:43.1]} 15. Qd3 {[%clk 0:02:55.6]}
15... Nxf3+ {[%clk 0:02:30.1]} 16. Qxf3 {[%clk 0:02:57.5]} 16... Nc4 {[%clk
0:02:23.5]} 17. Qe2 {[%clk 0:02:56.8]} 17... Ne5 {[%clk 0:02:14.6]} 18. f4
{[%clk 0:02:53.8]} 18... Nd7 {[%clk 0:02:13.9]} 19. e5 {[%clk 0:02:55.3]} 19...
c6 {[%clk 0:02:09]} 20. Be3 {[%clk 0:02:54.4]} 20... f6 {[%clk 0:01:49.7]} 21.
dxc6 {[%clk 0:02:53.3]} 1-0

[Event "*** Titled Tuesday 3|2 Blitz"]
[Site "Chess.com"]
[Date "2015.11.03"]
[Round "1"]
[White "Rating-Schmating"]
[Black "Zkid"]
[Result "0-1"]
[WhiteElo "1949"]
[BlackElo "2375"]
[TimeControl "180+2"]
[EndTime "11:05:37 PST"]
[Termination "Zkid won by checkmate"]

1. e4 {[%clk 0:03:00.5]} 1... c5 {[%clk 0:02:58.8]} 2. Nf3 {[%clk 0:03:01.1]}
2... d6 {[%clk 0:02:58.4]} 3. d4 {[%clk 0:03:02.1]} 3... cxd4 {[%clk 0:02:59.4]}
4. Nxd4 {[%clk 0:03:03.2]} 4... Nf6 {[%clk 0:03:00.2]} 5. Nc3 {[%clk 0:03:04.2]}
5... a6 {[%clk 0:03:00.3]} 6. Be3 {[%clk 0:03:05]} 6... e5 {[%clk 0:03:01.3]} 7.
Nb3 {[%clk 0:03:04.6]} 7... Be7 {[%clk 0:03:02.4]} 8. a4 {[%clk 0:03:05.1]} 8...
O-O {[%clk 0:03:00.8]} 9. Be2 {[%clk 0:03:05.6]} 9... Be6 {[%clk 0:03:01.2]} 10.
O-O {[%clk 0:03:06.1]} 10... Nc6 {[%clk 0:03:01.8]} 11. Kh1 {[%clk 0:03:05.1]}
11... d5 {[%clk 0:03:02.2]} 12. exd5 {[%clk 0:03:05.8]} 12... Nxd5 {[%clk
0:03:03.6]} 13. Nxd5 {[%clk 0:03:06.9]} 13... Bxd5 {[%clk 0:03:04.9]} 14. Bf3
{[%clk 0:03:05]} 14... e4 {[%clk 0:02:55.9]} 15. Be2 {[%clk 0:03:03.5]} 15... f5
{[%clk 0:02:52.8]} 16. c4 {[%clk 0:03:04.3]} 16... Be6 {[%clk 0:02:50.1]} 17.
Qxd8 {[%clk 0:03:04.9]} 17... Raxd8 {[%clk 0:02:47.9]} 18. Rad1 {[%clk
0:03:05.9]} 18... f4 {[%clk 0:02:47.1]} 19. Bc5 {[%clk 0:03:04.2]} 19... f3
{[%clk 0:02:37.3]} 20. gxf3 {[%clk 0:03:03.4]} 20... exf3 {[%clk 0:02:37.8]} 21.
Rxd8 {[%clk 0:03:00.1]} 21... fxe2 {[%clk 0:01:51.8]} 22. Rxf8+ {[%clk
0:02:57.1]} 22... Bxf8 {[%clk 0:01:51.2]} 23. Re1 {[%clk 0:02:57.8]} 23... Bxc4
{[%clk 0:01:51.6]} 24. Bxf8 {[%clk 0:02:56.6]} 24... Bxb3 {[%clk 0:01:36.1]} 25.
Bxg7 {[%clk 0:02:46.7]} 25... Kxg7 {[%clk 0:01:34]} 26. Rxe2 {[%clk 0:02:47.9]}
26... Bxa4 {[%clk 0:01:33.2]} 27. Kg2 {[%clk 0:02:46.3]} 27... Bb3 {[%clk
0:01:33]} 28. Re3 {[%clk 0:02:46.1]} 28... Bd5+ {[%clk 0:01:33.6]} 29. Kg3
{[%clk 0:02:47.4]} 29... Kf6 {[%clk 0:01:34.6]} 30. f4 {[%clk 0:02:47.9]} 30...
Nd4 {[%clk 0:01:33.7]} 31. Rd3 {[%clk 0:02:43.4]} 31... Ne2+ {[%clk 0:01:29.1]}
32. Kg4 {[%clk 0:02:38.3]} 32... h5+ {[%clk 0:01:29.2]} 33. Kh4 {[%clk
0:02:35.8]} 33... Nxf4 {[%clk 0:01:29.9]} 34. Rd4 {[%clk 0:02:36.1]} 34... Ke5
{[%clk 0:01:29.2]} 35. Rb4 {[%clk 0:02:35.8]} 35... b5 {[%clk 0:01:22.2]} 36.
Kg5 {[%clk 0:02:31]} 36... Bc4 {[%clk 0:01:18.3]} 37. b3 {[%clk 0:02:20.8]}
37... a5 {[%clk 0:01:18.3]} 38. bxc4 {[%clk 0:02:10.2]} 38... axb4 {[%clk
0:01:19.1]} 39. cxb5 {[%clk 0:02:11.7]} 39... b3 {[%clk 0:01:19.2]} 40. b6
{[%clk 0:02:12.7]} 40... b2 {[%clk 0:01:19.7]} 41. b7 {[%clk 0:02:13.9]} 41...
b1=Q {[%clk 0:01:20.3]} 42. b8=Q+ {[%clk 0:02:14.8]} 42... Qxb8 {[%clk
0:01:21.1]} 43. h4 {[%clk 0:02:16]} 43... Qg8+ {[%clk 0:01:21.1]} 44. Kh6 {[%clk
0:02:16.3]} 44... Qg6# {[%clk 0:01:22.7]} 0-1

[Event "*** Titled Tuesday 3|2 Blitz"]
[Site "Chess.com"]
[Date "2015.11.03"]
[Round "1"]
[White "xdb"]
[Black "GrigorGrigorov"]
[Result "0-1"]
[WhiteElo "2121"]
[BlackElo "2436"]
[TimeControl "180+2"]
[EndTime "11:05:57 PST"]
[Termination "GrigorGrigorov won by resignation"]

1. e4 {[%clk 0:02:52.9]} 1... g6 {[%clk 0:03:00.6]} 2. d4 {[%clk 0:02:52]} 2...
Bg7 {[%clk 0:03:01.6]} 3. Nf3 {[%clk 0:02:52]} 3... d6 {[%clk 0:03:02.2]} 4. Nc3
{[%clk 0:02:50.5]} 4... Nf6 {[%clk 0:03:02.7]} 5. Be2 {[%clk 0:02:38.1]} 5...
O-O {[%clk 0:03:03.2]} 6. O-O {[%clk 0:02:39.5]} 6... c6 {[%clk 0:03:03.6]} 7.
b3 {[%clk 0:02:24]} 7... Qc7 {[%clk 0:03:00.1]} 8. Bb2 {[%clk 0:02:24.4]} 8...
e5 {[%clk 0:03:00.2]} 9. a4 {[%clk 0:02:17.1]} 9... Re8 {[%clk 0:02:59.2]} 10.
dxe5 {[%clk 0:02:16]} 10... dxe5 {[%clk 0:02:59.7]} 11. a5 {[%clk 0:02:17.4]}
11... Bg4 {[%clk 0:02:59.2]} 12. Nd2 {[%clk 0:01:59.4]} 12... Bxe2 {[%clk
0:02:59]} 13. Qxe2 {[%clk 0:02:01.3]} 13... Nbd7 {[%clk 0:02:59.5]} 14. Rfd1
{[%clk 0:01:50.1]} 14... Nc5 {[%clk 0:02:49.1]} 15. Nc4 {[%clk 0:01:49.4]} 15...
Ne6 {[%clk 0:02:48.6]} 16. a6 {[%clk 0:01:48.3]} 16... b5 {[%clk 0:02:46.9]} 17.
Nd6 {[%clk 0:01:40.9]} 17... Nd4 {[%clk 0:02:27.2]} 18. Rxd4 {[%clk 0:01:17.1]}
18... exd4 {[%clk 0:02:27.9]} 19. Nxe8 {[%clk 0:01:16.6]} 19... Rxe8 {[%clk
0:02:28.2]} 20. Nd1 {[%clk 0:01:09.1]} 20... Rxe4 {[%clk 0:02:25]} 21. Qd2
{[%clk 0:01:03.7]} 21... Qe5 {[%clk 0:02:20.4]} 22. f3 {[%clk 0:00:22]} 22...
Re1+ {[%clk 0:01:58]} 23. Kf2 {[%clk 0:00:21.8]} 23... Rh1 {[%clk 0:01:58.7]}
24. Bxd4 {[%clk 0:00:17]} 24... Ng4+ {[%clk 0:01:56.7]} 25. fxg4 {[%clk
0:00:13.3]} 25... Qxd4+ {[%clk 0:01:57.2]} 0-1

[Event "*** Titled Tuesday 3|2 Blitz"]
[Site "Chess.com"]
[Date "2015.11.03"]
[Round "1"]
[White "vellottiwizard"]
[Black "AnastasiaProtopopova"]
[Result "1-0"]
[WhiteElo "2331"]
[BlackElo "1797"]
[TimeControl "180+2"]
[EndTime "11:06:22 PST"]
[Termination "vellottiwizard won by resignation"]

1. e4 {[%clk 0:03:00.5]} 1... e5 {[%clk 0:02:39.5]} 2. Nf3 {[%clk 0:03:00.7]}
2... Nc6 {[%clk 0:02:40.2]} 3. Bb5 {[%clk 0:03:01.2]} 3... a6 {[%clk 0:02:38.6]}
4. Ba4 {[%clk 0:03:02.1]} 4... Nf6 {[%clk 0:02:38.2]} 5. O-O {[%clk 0:03:03.6]}
5... Be7 {[%clk 0:02:39]} 6. d4 {[%clk 0:03:04.1]} 6... b5 {[%clk 0:02:36.8]} 7.
Bb3 {[%clk 0:02:59.8]} 7... exd4 {[%clk 0:02:34.7]} 8. e5 {[%clk 0:03:00.7]}
8... Ne4 {[%clk 0:02:34.8]} 9. Bd5 {[%clk 0:03:02]} 9... Nc5 {[%clk 0:02:28.7]}
10. Nxd4 {[%clk 0:02:58.4]} 10... Bb7 {[%clk 0:02:25.5]} 11. Nf5 {[%clk
0:02:59.1]} 11... O-O {[%clk 0:02:20.1]} 12. Qg4 {[%clk 0:02:56.7]} 12... g6
{[%clk 0:02:09.4]} 13. Re1 {[%clk 0:02:56.4]} 13... Kh8 {[%clk 0:01:40.7]} 14.
Bh6 {[%clk 0:02:43.9]} 14... Rg8 {[%clk 0:01:27]} 15. Nxe7 {[%clk 0:02:39.1]}
15... Qxe7 {[%clk 0:01:27.1]} 16. Bg5 {[%clk 0:02:39]} 16... Nxe5 {[%clk
0:00:54.5]} 17. Bxe7 {[%clk 0:02:35.3]} 17... Nxg4 {[%clk 0:00:54.9]} 18. Bxb7
{[%clk 0:02:36.4]} 18... Nxb7 {[%clk 0:00:50.2]} 19. f3 {[%clk 0:02:37.7]} 19...
Nh6 {[%clk 0:00:39]} 20. Bf6+ {[%clk 0:02:38.1]} 20... Rg7 {[%clk 0:00:40.4]}
21. Nc3 {[%clk 0:02:39.1]} 21... Ng8 {[%clk 0:00:41.3]} 22. Bxg7+ {[%clk
0:02:36.3]} 22... Kxg7 {[%clk 0:00:43.2]} 23. Rad1 {[%clk 0:02:37.4]} 23... d6
{[%clk 0:00:39]} 24. a4 {[%clk 0:02:38]} 24... b4 {[%clk 0:00:23.9]} 25. Nd5
{[%clk 0:02:38.6]} 25... a5 {[%clk 0:00:22.9]} 26. Nxc7 {[%clk 0:02:38.5]} 26...
Rc8 {[%clk 0:00:23.5]} 27. Ne8+ {[%clk 0:02:39.5]} 27... Kf8 {[%clk 0:00:21.3]}
28. Nxd6 {[%clk 0:02:38.3]} 28... Nxd6 {[%clk 0:00:22.3]} 29. Rxd6 {[%clk
0:02:40.2]} 29... Rxc2 {[%clk 0:00:23.7]} 30. Rd5 {[%clk 0:02:38.1]} 30... Rxb2
{[%clk 0:00:24.3]} 31. Rxa5 {[%clk 0:02:39.3]} 31... Ra2 {[%clk 0:00:25]} 32.
Rb1 {[%clk 0:02:38]} 32... Ne7 {[%clk 0:00:25.5]} 33. Rxb4 {[%clk 0:02:38.1]}
33... Nc6 {[%clk 0:00:25.8]} 34. Ra8+ {[%clk 0:02:39.1]} 34... Kg7 {[%clk
0:00:27.5]} 35. Re4 {[%clk 0:02:38.1]} 35... f5 {[%clk 0:00:27.3]} 36. Re1
{[%clk 0:02:38.3]} 36... Nd4 {[%clk 0:00:19.7]} 37. h4 {[%clk 0:02:38.3]} 37...
f4 {[%clk 0:00:17.7]} 38. Ra7+ {[%clk 0:02:37.4]} 38... Kh6 {[%clk 0:00:17.8]}
39. Ree7 {[%clk 0:02:34.7]} 39... Ne2+ {[%clk 0:00:14.1]} 40. Kh2 {[%clk
0:02:35.4]} 40... g5 {[%clk 0:00:12.3]} 41. Ra6+ {[%clk 0:02:36.1]} 1-0

[Event "*** Titled Tuesday 3|2 Blitz"]
[Site "Chess.com"]
[Date "2015.11.03"]
[Round "1"]
[White "sorito"]
[Black "DrHolmes13"]
[Result "1-0"]
[WhiteElo "2086"]
[BlackElo "2346"]
[TimeControl "180+2"]
[EndTime "11:06:32 PST"]
[Termination "sorito won by resignation"]

1. d4 {[%clk 0:03:01.2]} 1... d5 {[%clk 0:02:59.5]} 2. Nf3 {[%clk 0:03:02]} 2...
Nf6 {[%clk 0:02:59.9]} 3. c4 {[%clk 0:03:03]} 3... e6 {[%clk 0:03:01]} 4. g3
{[%clk 0:03:04.1]} 4... dxc4 {[%clk 0:03:00.5]} 5. Bg2 {[%clk 0:03:06]} 5... a6
{[%clk 0:03:01.8]} 6. Ne5 {[%clk 0:03:06.3]} 6... Bb4+ {[%clk 0:02:57.2]} 7. Nc3
{[%clk 0:03:06.5]} 7... O-O {[%clk 0:02:52.9]} 8. O-O {[%clk 0:03:04]} 8... c5
{[%clk 0:02:49.6]} 9. dxc5 {[%clk 0:03:01.3]} 9... Qc7 {[%clk 0:02:50.1]} 10.
Nxc4 {[%clk 0:02:59]} 10... Qxc5 {[%clk 0:02:50.5]} 11. Qb3 {[%clk 0:03:00.2]}
11... Nc6 {[%clk 0:02:40.2]} 12. Be3 {[%clk 0:03:00.2]} 12... Qe7 {[%clk
0:02:39.6]} 13. Nb6 {[%clk 0:03:01.3]} 13... Rb8 {[%clk 0:02:38]} 14. Rfd1
{[%clk 0:03:02.1]} 14... Bd7 {[%clk 0:02:30.6]} 15. Bg5 {[%clk 0:03:01.3]} 15...
Rfd8 {[%clk 0:02:23.1]} 16. Bxf6 {[%clk 0:02:53.4]} 16... gxf6 {[%clk
0:02:23.6]} 17. Nxd7 {[%clk 0:02:31.3]} 17... Rxd7 {[%clk 0:02:19.5]} 18. Rxd7
{[%clk 0:02:24.9]} 18... Qxd7 {[%clk 0:02:19.4]} 19. Bxc6 {[%clk 0:02:26]} 19...
bxc6 {[%clk 0:02:16.5]} 20. Rd1 {[%clk 0:02:23.7]} 20... Qa7 {[%clk 0:02:10.8]}
21. Qc4 {[%clk 0:02:21.5]} 21... Qc5 {[%clk 0:02:03]} 22. Qxc5 {[%clk
0:02:14.8]} 22... Bxc5 {[%clk 0:02:04.9]} 23. b3 {[%clk 0:02:16.3]} 23... f5
{[%clk 0:02:01.5]} 24. Na4 {[%clk 0:02:16.9]} 24... Bb4 {[%clk 0:02:00.7]} 25.
Rd7 {[%clk 0:02:16.6]} 25... a5 {[%clk 0:02:01.4]} 26. Nb2 {[%clk 0:02:16.9]}
26... Rb5 {[%clk 0:01:59]} 27. Nd3 {[%clk 0:02:16.4]} 27... h6 {[%clk
0:01:54.6]} 28. Rc7 {[%clk 0:02:17]} 28... Rb6 {[%clk 0:01:54.8]} 29. Kg2 {[%clk
0:02:16.3]} 29... Kg7 {[%clk 0:01:55.6]} 30. f4 {[%clk 0:02:17.2]} 30... Bd6
{[%clk 0:01:56]} 31. Rd7 {[%clk 0:02:17.7]} 31... Bb4 {[%clk 0:01:56.3]} 32. Kf3
{[%clk 0:02:19]} 32... Bc3 {[%clk 0:01:54.6]} 33. Nc5 {[%clk 0:02:19.6]} 33...
Kg6 {[%clk 0:01:51.6]} 34. Rd3 {[%clk 0:02:17.7]} 34... Bf6 {[%clk 0:01:47.5]}
35. h4 {[%clk 0:02:17.1]} 35... Rb5 {[%clk 0:01:47.8]} 36. Nd7 {[%clk
0:02:15.9]} 36... Rb4 {[%clk 0:01:46.1]} 37. h5+ {[%clk 0:02:15.1]} 37... Kg7
{[%clk 0:01:47]} 38. Nc5 {[%clk 0:02:15]} 38... Rb5 {[%clk 0:01:46.6]} 39. Na4
{[%clk 0:02:15.4]} 39... Rb4 {[%clk 0:01:46.1]} 40. Rd7 {[%clk 0:02:15.7]} 40...
Rb5 {[%clk 0:01:37.7]} 41. Rc7 {[%clk 0:02:15.8]} 41... Rd5 {[%clk 0:01:38.1]}
42. Rxc6 {[%clk 0:02:15.5]} 42... Rd2 {[%clk 0:01:39.2]} 43. Rc7 {[%clk
0:02:11.6]} 43... Rxa2 {[%clk 0:01:39.4]} 44. Nc5 {[%clk 0:02:13.2]} 44... Kf8
{[%clk 0:01:37.3]} 45. Rc8+ {[%clk 0:02:13.7]} 45... Kg7 {[%clk 0:01:36.9]} 46.
Rc7 {[%clk 0:02:14.2]} 46... Kf8 {[%clk 0:01:37.7]} 47. Nd7+ {[%clk 0:02:14.1]}
47... Kg7 {[%clk 0:01:38]} 48. Rb7 {[%clk 0:02:14]} 48... Rb2 {[%clk 0:01:36.4]}
49. Nc5 {[%clk 0:02:14.2]} 49... Kf8 {[%clk 0:01:33.9]} 50. Rb5 {[%clk
0:02:13.4]} 50... Bd4 {[%clk 0:01:28.7]} 51. Nd3 {[%clk 0:02:08.9]} 51... Bc3
{[%clk 0:01:25.9]} 52. Nxb2 {[%clk 0:02:09.1]} 52... Bxb2 {[%clk 0:01:26.3]} 53.
Rxa5 {[%clk 0:02:10.4]} 1-0

[Event "*** Titled Tuesday 3|2 Blitz"]
[Site "Chess.com"]
[Date "2015.11.03"]
[Round "1"]
[White "SerGo055"]
[Black "Entilza"]
[Result "1-0"]
[WhiteElo "2375"]
[BlackElo "2037"]
[TimeControl "180+2"]
[EndTime "11:06:53 PST"]
[Termination "SerGo055 won by resignation"]

1. d4 {[%clk 0:02:52]} 1... Nf6 {[%clk 0:02:54.3]} 2. Nf3 {[%clk 0:02:52.7]}
2... e6 {[%clk 0:02:54.9]} 3. c4 {[%clk 0:02:53.3]} 3... d5 {[%clk 0:02:55.3]}
4. Nc3 {[%clk 0:02:51.5]} 4... Be7 {[%clk 0:02:55]} 5. Bg5 {[%clk 0:02:51.9]}
5... O-O {[%clk 0:02:53.5]} 6. e3 {[%clk 0:02:51.7]} 6... h6 {[%clk 0:02:53.8]}
7. Bh4 {[%clk 0:02:52.4]} 7... Ne4 {[%clk 0:02:42.5]} 8. Bxe7 {[%clk 0:02:50.6]}
8... Qxe7 {[%clk 0:02:40]} 9. Bd3 {[%clk 0:02:46.4]} 9... Nxc3 {[%clk
0:02:17.4]} 10. bxc3 {[%clk 0:02:45.2]} 10... Nd7 {[%clk 0:02:16.9]} 11. O-O
{[%clk 0:02:45.7]} 11... Nf6 {[%clk 0:01:47.1]} 12. Ne5 {[%clk 0:02:35.5]} 12...
b6 {[%clk 0:01:37.1]} 13. a4 {[%clk 0:02:36]} 13... a5 {[%clk 0:01:33.6]} 14.
Qc2 {[%clk 0:02:28.8]} 14... Bb7 {[%clk 0:01:33.4]} 15. Rab1 {[%clk 0:02:27.1]}
15... dxc4 {[%clk 0:01:32.8]} 16. Bxc4 {[%clk 0:02:28.1]} 16... Rfd8 {[%clk
0:01:32.7]} 17. Bd3 {[%clk 0:02:26]} 17... Nd7 {[%clk 0:01:30.7]} 18. Be4 {[%clk
0:02:18.7]} 18... Bxe4 {[%clk 0:01:29]} 19. Qxe4 {[%clk 0:02:20.1]} 19... Nxe5
{[%clk 0:01:29.3]} 20. Qxe5 {[%clk 0:02:21.1]} 20... Qd6 {[%clk 0:01:27]} 21.
Qe4 {[%clk 0:02:18.5]} 21... Qd5 {[%clk 0:01:27.1]} 22. Qxd5 {[%clk 0:02:19]}
22... Rxd5 {[%clk 0:01:29]} 23. c4 {[%clk 0:02:20.2]} 23... Rd7 {[%clk
0:01:28.2]} 24. Rfc1 {[%clk 0:02:21.6]} 24... Rb8 {[%clk 0:01:21.8]} 25. c5
{[%clk 0:02:21.1]} 25... Kf8 {[%clk 0:01:22.3]} 26. Rb5 {[%clk 0:02:19.1]} 26...
Ke7 {[%clk 0:01:19.4]} 27. Rcb1 {[%clk 0:02:19.6]} 27... Rd5 {[%clk 0:01:13]}
28. Kf1 {[%clk 0:02:13.4]} 28... f5 {[%clk 0:01:10.4]} 29. Ke2 {[%clk
0:02:06.8]} 29... Kd7 {[%clk 0:01:10.5]} 30. Kd3 {[%clk 0:02:06.8]} 30... Kc6
{[%clk 0:01:10.1]} 31. Kc4 {[%clk 0:02:05.1]} 31... Rbd8 {[%clk 0:01:06.7]} 32.
cxb6 {[%clk 0:02:00.9]} 32... Rxb5 {[%clk 0:01:05.6]} 33. bxc7 {[%clk
0:01:53.7]} 33... Rb4+ {[%clk 0:00:57.9]} 34. Rxb4 {[%clk 0:01:54]} 34... Rc8
{[%clk 0:00:58.2]} 35. Rb5 {[%clk 0:01:54.4]} 35... Rxc7 {[%clk 0:00:58.2]} 36.
Rc5+ {[%clk 0:01:55.2]} 1-0

[Event "*** Titled Tuesday 3|2 Blitz"]
[Site "Chess.com"]
[Date "2015.11.03"]
[Round "1"]
[White "jcgs1030"]
[Black "Lupul_Cenusiu"]
[Result "0-1"]
[WhiteElo "2141"]
[BlackElo "2401"]
[TimeControl "180+2"]
[EndTime "11:07:04 PST"]
[Termination "Lupul_Cenusiu won by resignation"]

1. e4 {[%clk 0:02:50.8]} 1... d6 {[%clk 0:03:00.6]} 2. d4 {[%clk 0:02:49.5]}
2... Nf6 {[%clk 0:03:01.5]} 3. Nc3 {[%clk 0:02:50.7]} 3... g6 {[%clk 0:03:02.6]}
4. f4 {[%clk 0:02:51.9]} 4... Bg7 {[%clk 0:03:03.8]} 5. Nf3 {[%clk 0:02:52.7]}
5... O-O {[%clk 0:03:04.7]} 6. Bd3 {[%clk 0:02:53.1]} 6... Na6 {[%clk
0:03:04.3]} 7. O-O {[%clk 0:02:53.6]} 7... c5 {[%clk 0:03:04.7]} 8. d5 {[%clk
0:02:54.9]} 8... Bg4 {[%clk 0:03:04]} 9. h3 {[%clk 0:02:44]} 9... Bxf3 {[%clk
0:03:04.3]} 10. Qxf3 {[%clk 0:02:45]} 10... Nb4 {[%clk 0:03:05.1]} 11. a3 {[%clk
0:02:32.5]} 11... Nxd3 {[%clk 0:03:05.1]} 12. cxd3 {[%clk 0:02:33.9]} 12... Rc8
{[%clk 0:02:58.2]} 13. Be3 {[%clk 0:02:18.9]} 13... Qa5 {[%clk 0:02:52.8]} 14.
Rfc1 {[%clk 0:02:15.7]} 14... a6 {[%clk 0:02:51.6]} 15. Bd2 {[%clk 0:02:11.8]}
15... Qc7 {[%clk 0:02:51.3]} 16. b4 {[%clk 0:02:10.4]} 16... cxb4 {[%clk
0:02:50.8]} 17. axb4 {[%clk 0:02:10.7]} 17... Nd7 {[%clk 0:02:47.8]} 18. Kh2
{[%clk 0:02:03.1]} 18... Qb6 {[%clk 0:02:45.2]} 19. Rab1 {[%clk 0:01:57]} 19...
Rfe8 {[%clk 0:02:18.9]} 20. Kg3 {[%clk 0:01:13.9]} 20... Nf6 {[%clk 0:02:09.6]}
21. Qf2 {[%clk 0:01:12]} 21... Nh5+ {[%clk 0:02:06]} 22. Kf3 {[%clk 0:01:13.3]}
22... Qxf2+ {[%clk 0:02:06.8]} 23. Kxf2 {[%clk 0:01:14.7]} 23... Nxf4 {[%clk
0:02:03]} 24. Bxf4 {[%clk 0:01:11.1]} 24... Rxc3 {[%clk 0:01:58.6]} 25. Rxc3
{[%clk 0:01:09.9]} 25... Bxc3 {[%clk 0:01:59.4]} 26. Bg5 {[%clk 0:01:08.2]}
26... f6 {[%clk 0:01:59.2]} 27. Be3 {[%clk 0:01:05.6]} 27... Kf7 {[%clk
0:01:54.3]} 28. Rb3 {[%clk 0:00:55.3]} 28... Rc8 {[%clk 0:01:52.6]} 29. Ke2
{[%clk 0:00:56.5]} 29... e5 {[%clk 0:01:38.9]} 30. dxe6+ {[%clk 0:00:53.2]}
30... Kxe6 {[%clk 0:01:39.6]} 31. d4 {[%clk 0:00:54.6]} 31... d5 {[%clk
0:01:41]} 32. Kd3 {[%clk 0:00:54.8]} 32... dxe4+ {[%clk 0:01:39.8]} 33. Kxe4
{[%clk 0:00:56.1]} 33... Be1 {[%clk 0:01:32.3]} 34. d5+ {[%clk 0:00:53.8]} 34...
Kd7 {[%clk 0:01:33.4]} 35. Bc5 {[%clk 0:00:53.8]} 35... Re8+ {[%clk 0:01:32.4]}
36. Kd3 {[%clk 0:00:53.5]} 36... Re5 {[%clk 0:01:30.2]} 37. Kc4 {[%clk
0:00:52.6]} 37... b5+ {[%clk 0:01:25.3]} 38. Kd4 {[%clk 0:00:47.4]} 38... Bf2+
{[%clk 0:01:26.1]} 39. Kd3 {[%clk 0:00:48.2]} 39... Bxc5 {[%clk 0:01:27]} 40.
bxc5 {[%clk 0:00:40.2]} 40... Rxd5+ {[%clk 0:01:28.2]} 0-1

[Event "*** Titled Tuesday 3|2 Blitz"]
[Site "Chess.com"]
[Date "2015.11.03"]
[Round "1"]
[White "Izoria123"]
[Black "Rickstereo"]
[Result "1-0"]
[WhiteElo "2401"]
[BlackElo "2091"]
[TimeControl "180+2"]
[EndTime "11:07:25 PST"]
[Termination "Izoria123 won by resignation"]

1. e4 {[%clk 0:02:58.7]} 1... c5 {[%clk 0:03:00.5]} 2. Nf3 {[%clk 0:02:59.6]}
2... Nc6 {[%clk 0:03:01.6]} 3. Bb5 {[%clk 0:02:59.2]} 3... g6 {[%clk 0:03:01.9]}
4. O-O {[%clk 0:02:59.6]} 4... Bg7 {[%clk 0:03:03]} 5. Re1 {[%clk 0:03:01.2]}
5... Nf6 {[%clk 0:03:03.4]} 6. e5 {[%clk 0:03:00.9]} 6... Nd5 {[%clk 0:03:04.2]}
7. Nc3 {[%clk 0:03:01.4]} 7... Nc7 {[%clk 0:03:04.1]} 8. Bxc6 {[%clk 0:03:01.5]}
8... dxc6 {[%clk 0:03:04.2]} 9. Ne4 {[%clk 0:03:02.9]} 9... Ne6 {[%clk 0:02:57]}
10. d3 {[%clk 0:03:02.9]} 10... O-O {[%clk 0:02:57]} 11. Be3 {[%clk 0:03:03.6]}
11... b6 {[%clk 0:02:56.5]} 12. Qd2 {[%clk 0:03:04.5]} 12... Nd4 {[%clk
0:02:42.3]} 13. Nxd4 {[%clk 0:03:04.4]} 13... cxd4 {[%clk 0:02:42.9]} 14. Bh6
{[%clk 0:03:06.1]} 14... Be6 {[%clk 0:02:41.2]} 15. Qf4 {[%clk 0:02:50.1]} 15...
Qd5 {[%clk 0:02:06.5]} 16. Qh4 {[%clk 0:01:51.3]} 16... f6 {[%clk 0:01:53.6]}
17. exf6 {[%clk 0:01:45.9]} 17... exf6 {[%clk 0:01:54.1]} 18. Bxg7 {[%clk
0:01:42.4]} 18... Kxg7 {[%clk 0:01:54.2]} 19. b3 {[%clk 0:01:32.3]} 19... Rae8
{[%clk 0:01:50.1]} 20. Qg3 {[%clk 0:01:27.4]} 20... Qe5 {[%clk 0:01:17]} 21. Nd6
{[%clk 0:01:23.4]} 21... Qxg3 {[%clk 0:01:09.4]} 22. Nxe8+ {[%clk 0:01:24]}
22... Rxe8 {[%clk 0:01:11]} 23. hxg3 {[%clk 0:01:25.5]} 23... Kf7 {[%clk
0:01:12.6]} 24. Re4 {[%clk 0:01:26.1]} 24... c5 {[%clk 0:01:09.5]} 25. Rae1
{[%clk 0:01:26.4]} 25... f5 {[%clk 0:01:09.2]} 26. Re5 {[%clk 0:01:26.9]} 26...
Bd7 {[%clk 0:01:07]} 27. Rxe8 {[%clk 0:01:27.1]} 27... Bxe8 {[%clk 0:01:07]} 28.
f3 {[%clk 0:01:26.9]} 28... Bc6 {[%clk 0:01:06.8]} 29. Kf2 {[%clk 0:01:27.8]}
29... h5 {[%clk 0:01:06.4]} 30. g4 {[%clk 0:01:23.5]} 30... hxg4 {[%clk
0:01:03.7]} 31. fxg4 {[%clk 0:01:24.5]} 31... f4 {[%clk 0:01:05]} 32. g5 {[%clk
0:01:25]} 32... Bd5 {[%clk 0:01:00.2]} 33. Re5 {[%clk 0:01:22]} 33... Bc6 {[%clk
0:01:00.1]} 34. Re1 {[%clk 0:01:20]} 34... a6 {[%clk 0:00:57.8]} 35. Rh1 {[%clk
0:01:19.6]} 35... Ke6 {[%clk 0:00:58.9]} 36. Rh7 {[%clk 0:01:19.4]} 36... Kf5
{[%clk 0:01:00]} 37. Ra7 {[%clk 0:01:18.9]} 1-0